fUST/lending_fUST_20251026
["ID","MTS","AMOUNT","RATE_DAILY","PERIOD"]
[392394906,1761427199086,-0.31763766,0.00015879,2]
[392394907,1761427200637,-314.25338474,0.00015879,2]
[392394908,1761427201196,300.0,0.00015879,2]
[392394909,1761427202030,231.0,0.00015879,2]
[392394910,1761427202065,226.0,0.00015879,2]
[392394911,1761427202157,300.0,0.00015879,2]
[392394912,1761427202427,1200.0,0.00015879,2]
[392394913,1761427203036,-193.35846188,0.00015879,2]
[392394914,1761427203060,-29.67887368,0.00015879,2]
[392394915,1761427205220,-358.4442926,0.00015879,2]
[392394916,1761427205955,202.05433382,0.00015164,2]
[392394917,1761427206788,-111.87683372,0.00015879,2]
[392394918,1761427206811,-94.34432798,0.00015879,2]
[392394919,1761427207399,230.91923865,0.00015679,2]
[392394920,1761427209544,-252.91166197,0.00015879,2]
[392394921,1761427212677,-153.53254037,0.00015879,2]
[392394922,1761427229321,-8.35124573,0.00015879,2]
[392394923,1761427229342,-146.43582929,0.00015879,2]
[392394924,1761427230933,-247.08833803,0.00015879,2]
[392394925,1761427233032,-49.42928895,0.00015879,2]
[392394926,1761427233057,-226.86313531,0.0001588,2]
[392394927,1761427234761,-417.55950424,0.0001588,2]
[392394928,1761427236387,-382.44049576,0.0001588,2]
[392394929,1761427239082,-295.03439519,0.0001588,2]
[392394930,1761427242712,-201.73371903,0.0001588,2]
[392394931,1761427243215,-6821.96644582,0.0001588,2]
[392394932,1761427243280,-10000.01,0.0001588,2]
[392394933,1761427243297,-10000.01,0.0001588,2]
[392394934,1761427243353,-10000.01,0.0001588,2]
[392394935,1761427243497,-10000.01,0.0001588,2]
[392394936,1761427243652,-10000.01,0.0001588,2]
[392394937,1761427243770,-10000.01,0.0001588,2]
[392394938,1761427243891,-10000.01,0.0001588,2]
[392394939,1761427244018,-10000.01,0.0001588,2]
[392394940,1761427249082,-500.0,0.00015879,2]
[392394941,1761427249118,-500.0,0.00015879,2]
[392394942,1761427249191,-8000.01,0.0001588,2]
[392394943,1761427254866,-500.0,0.00015879,2]
[392394944,1761427254900,-500.0,0.00015879,2]
[392394945,1761427254935,-500.0,0.00015879,2]
[392394946,1761427254971,-500.0,0.00015879,2]
[392394947,1761427255003,-500.0,0.00015879,2]
[392394948,1761427255034,-500.0,0.00015879,2]
[392394949,1761427255066,-500.0,0.00015879,2]
[392394950,1761427255096,-500.0,0.00015879,2]
[392394951,1761427255128,-500.0,0.00015879,2]
[392394952,1761427255158,-500.0,0.00015879,2]
[392394953,1761427255265,-500.0,0.00015879,2]
[392394954,1761427255422,-0.01,0.0001588,2]
[392394955,1761427255450,-9000.01,0.0001588,2]
[392394956,1761427255483,-10000.01,0.0001588,2]
[392394957,1761427255511,-10000.01,0.0001588,2]
[392394958,1761427255528,-10000.01,0.0001588,2]
[392394959,1761427255616,-10000.01,0.0001588,2]
[392394960,1761427255741,-10000.01,0.0001588,2]
[392394961,1761427255844,-10000.01,0.0001588,2]
[392394962,1761427255964,-10000.01,0.0001588,2]
[392394963,1761427260953,-3218.17301903,0.0001588,2]
[392394964,1761427260980,-3563.66396194,0.0001588,2]
[392394965,1761427267139,-500.0,0.00015888,2]
[392394966,1761427267173,-500.0,0.00015888,2]
[392394967,1761427268495,-199.19903338,0.00015899,2]
[392394968,1761427270018,-100.80096662,0.00015899,2]
[392394969,1761427270043,-67.31987887,0.000159,2]
[392394970,1761427272073,-162.81526011,0.000159,2]
[392394971,1761427274120,-69.86486102,0.000159,2]
[392394972,1761427274144,-107.22303786,0.000159,2]
[392394973,1761427276187,-192.77696214,0.000159,2]
[392394974,1761427276212,-99.85727855,0.000159,2]
[392394975,1761427279037,-200.14272145,0.000159,2]
[392394976,1761427279059,-8.39034007,0.000159,2]
[392394977,1761427281335,168.4575468,0.00018836,10]
[392394978,1761427282252,-1465.42827853,0.0001589,2]
[392394979,1761427282283,-291.60965993,0.000159,2]
[392394980,1761427282364,-6485.93412308,0.000159,2]
[392394981,1761427282396,-10000.01,0.000159,2]
[392394982,1761427282434,-196.0,0.000159,2]
[392394983,1761427282526,-10000.01,0.000159,2]
[392394984,1761427282692,-10000.01,0.000159,2]
[392394985,1761427282824,-3043.5401858,0.000159,2]
[392394986,1761427282850,-3912.9296284,0.000159,2]
[392394987,1761427284622,-207.99762457,0.00015936,2]
[392394988,1761427297825,-152.45287451,0.00015936,2]
[392394989,1761427298616,-160.09684101,0.00015974,2]
[392394990,1761427300407,-209.13028078,0.00015974,2]
[392394991,1761427302168,-169.24885918,0.00015974,2]
[392394992,1761427304319,-196.0,0.00015974,2]
[392394993,1761427307182,-183.46693848,0.00015974,2]
[392394994,1761427310101,-421.36901247,0.00015974,2]
[392394996,1761427312223,-385.17573759,0.00015974,2]
[392394997,1761427312720,-221.10317049,0.00015974,2]
[392394998,1761427315460,-160.86822108,0.00015979,2]
[392394999,1761427327980,-300.0,0.00015979,2]
[392395000,1761427343127,-640.41920181,0.00015979,2]
[392395001,1761427358020,1200.0,0.00015979,2]
[392395002,1761427358495,-577.31,0.0001598,3]
[392395003,1761427358526,-866.0,0.0001598,3]
[392395004,1761427358560,-500.0,0.0001598,2]
[392395005,1761427373669,-213.96859442,0.0001598,2]
[392395006,1761427373700,-151.0,0.0001598,2]
[392395007,1761427373731,-151.0,0.0001598,2]
[392395008,1761427373760,-151.0,0.0001598,2]
[392395009,1761427373790,-151.0,0.0001598,2]
[392395010,1761427373820,-151.0,0.0001598,2]
[392395011,1761427373849,-151.0,0.0001598,2]
[392395012,1761427373879,-151.0,0.0001598,2]
[392395013,1761427373910,-151.0,0.0001598,2]
[392395014,1761427373940,-151.0,0.0001598,2]
[392395015,1761427373972,-151.0,0.0001598,2]
[392395016,1761427374003,-151.0,0.0001598,2]
[392395017,1761427374034,-1000.0,0.0001598,2]
[392395018,1761427374066,-151.0,0.0001598,2]
[392395019,1761427374099,-1000.0,0.0001598,2]
[392395020,1761427374131,-151.0,0.0001598,2]
[392395021,1761427374163,-646.07281116,0.0001598,2]
[392395022,1761427374280,-353.92718884,0.0001598,2]
[392395023,1761427374310,-151.0,0.0001598,2]
[392395024,1761427374340,-1000.0,0.0001598,2]
[392395025,1761427374370,-151.0,0.0001598,2]
[392395026,1761427374401,-263.85291005,0.0001598,2]
[392395027,1761427374431,-151.0,0.0001598,2]
[392395028,1761427374460,-151.0,0.0001598,2]
[392395029,1761427374490,-151.0,0.0001598,2]
[392395030,1761427374520,-151.0,0.0001598,2]
[392395031,1761427374550,-151.0,0.0001598,2]
[392395032,1761427388832,-300.0,0.00015988,2]
[392395033,1761427403995,-578.28242448,0.00015989,2]
[392395034,1761427415170,8843.44515104,0.0001589,2]
[392395035,1761427415198,10000.01,0.0001589,2]
[392395036,1761427415222,10000.01,0.0001589,2]
[392395037,1761427415247,10000.01,0.0001589,2]
[392395038,1761427415270,10000.01,0.0001589,2]
[392395039,1761427415293,10000.01,0.0001589,2]
[392395040,1761427415317,10000.01,0.0001589,2]
[392395041,1761427415340,10000.01,0.0001589,2]
[392395042,1761427415364,10000.01,0.0001589,2]
[392395043,1761427493429,848.8078247,0.00015003,2]
[392395045,1761427510998,342.46677815,0.00015397,2]
[392395048,1761427512701,391.3906036,0.00015645,2]
[392395056,1761427562582,780.3275187,0.00014914,2]
[392395065,1761427621900,1394.1776298,0.00015792,2]
[392395066,1761427623923,1394.17762976,0.00015853,2]
[392395083,1761427694927,2034.80968811,0.00015707,2]
[392395091,1761427711573,1183.96253891,0.00015876,2]
[392395093,1761427711769,1337.10576516,0.00015,2]
[392395114,1761427729615,292.78402311,0.00015792,2]
[392395115,1761427729641,377.19911367,0.00015792,2]
[392395116,1761427781372,152.829773,0.00018894,10]
[392395117,1761427781660,152.829773,0.00018492,10]
[392395118,1761427781975,152.829773,0.0001809,10]
[392395119,1761427784463,152.829773,0.00018894,9]
[392395120,1761427784802,152.829773,0.00018492,9]
[392395121,1761427785087,152.829773,0.0001809,9]
[392395122,1761427786601,152.829773,0.0001887,7]
[392395123,1761427786908,152.829773,0.00018488,7]
[392395124,1761427787218,152.829773,0.00018106,7]
[392395125,1761427787602,152.829773,0.00017725,7]
[392395127,1761427804128,164.8438535,0.00015068,2]
[392395365,1761427837912,-350.1,0.0001588,3]
[392395367,1761427837921,-175.05,0.0001588,3]
[392395369,1761427837930,-525.18,0.0001588,3]
[392395371,1761427837940,-207.21505215,0.00015881,2]
[392395374,1761427837949,-213.96859442,0.00015881,2]
[392395376,1761427837958,-300.0,0.00015887,2]
[392395378,1761427837967,-1200.0,0.00015887,2]
[392395380,1761427837976,-161.15508581,0.00015888,2]
[392395418,1761427841012,-3e-08,0.00015888,2]
[392395446,1761427846381,-1038.84491416,0.00015888,2]
[392395447,1761427846391,-247.55613532,0.00015889,2]
[392395448,1761427846401,-596.07617406,0.00015889,2]
[392395449,1761427846411,-603.8558698,0.00015889,2]
[392395450,1761427846420,-500.0,0.00015889,2]
[392395451,1761427846429,-500.0,0.00015889,2]
[392395452,1761427846438,-412.86877598,0.00015889,2]
[392395453,1761427846447,-330.5447483,0.00015889,2]
[392395454,1761427846457,-500.0,0.00015889,2]
[392395455,1761427846466,-500.0,0.00015889,2]
[392395456,1761427846475,-500.0,0.00015889,2]
[392395457,1761427846484,-405.73911343,0.00015889,2]
[392395458,1761427846494,-500.0,0.00015889,2]
[392395459,1761427846503,-500.0,0.00015889,2]
[392395460,1761427846512,-500.0,0.00015889,2]
[392395461,1761427846521,-500.0,0.00015889,2]
[392395462,1761427846531,-500.0,0.00015889,2]
[392395463,1761427846540,-449.86410238,0.00015889,2]
[392395464,1761427846550,-500.0,0.00015889,2]
[392395465,1761427846560,-500.0,0.00015889,2]
[392395466,1761427846570,-575.77935522,0.00015889,2]
[392395467,1761427846579,-500.0,0.00015889,2]
[392395468,1761427846588,-482.06350052,0.00015889,2]
[392395469,1761427846597,-500.0,0.00015889,2]
[392395470,1761427846607,-200.0,0.00015889,2]
[392395471,1761427846616,-500.0,0.00015889,2]
[392395472,1761427846625,-500.0,0.00015889,2]
[392395473,1761427846635,-500.0,0.00015889,2]
[392395474,1761427846643,-1382.44226594,0.0001589,2]
[392395476,1761427865502,1179.123933,0.00013699,2]
[392395477,1761427866353,500.0,0.0001911,6]
[392395479,1761427900647,1413.9909216,0.00014961,2]
[392395480,1761427933284,6864.85217823,0.00014961,2]
[392395481,1761427933311,10000.01,0.00014961,2]
[392395482,1761427933336,10000.01,0.00014961,2]
[392395484,1761427936845,-4877.03175107,0.00014961,2]
[392395485,1761427957265,196.0,0.0001511,2]
[392395486,1761427957334,196.0,0.0001514,2]
[392395487,1761427957440,196.0,0.0001517,2]
[392395488,1761427957502,196.0,0.00015201,2]
[392395489,1761427957540,196.0,0.00015231,2]
[392395490,1761427957622,196.0,0.00015261,2]
[392395491,1761427957697,196.0,0.00015291,2]
[392395492,1761427957768,196.0,0.00015321,2]
[392395493,1761427957843,196.0,0.00015352,2]
[392395494,1761427957905,196.0,0.00015382,2]
[392395495,1761427957973,196.0,0.00015412,2]
[392395496,1761427958050,196.0,0.00015442,2]
[392395497,1761427958120,196.0,0.00015472,2]
[392395498,1761427958203,196.0,0.00015503,2]
[392395499,1761427958266,196.0,0.00015533,2]
[392395500,1761427958336,196.0,0.00015563,2]
[392395501,1761427958421,196.0,0.00015593,2]
[392395502,1761427958507,196.0,0.00015623,2]
[392395503,1761427958588,196.0,0.00015654,2]
[392395504,1761427959129,196.0,0.00015684,2]
[392395505,1761427959203,196.0,0.00015714,2]
[392395506,1761427959303,196.0,0.00015744,2]
[392395507,1761427959339,196.0,0.00015774,2]
[392395508,1761427959407,196.0,0.00015805,2]
[392395509,1761427962564,1282.91524666,0.00015826,2]
[392395510,1761427964860,4013.09475334,0.0001583,2]
[392395511,1761427964891,986.90524666,0.0001583,2]
[392395512,1761427973307,152.829773,0.0001907,7]
[392395513,1761427973546,196.0,0.0001583,2]
[392395514,1761427973608,152.829773,0.0001906,7]
[392395516,1761427982101,3972.24336124,0.0001583,2]
[392395517,1761427989893,664.17600258,0.0001583,2]
[392395520,1761428025325,153.134479,0.0001907,7]
[392395521,1761428025599,153.134479,0.0001906,7]
[392395522,1761428025902,153.134479,0.0001905,7]
[392395523,1761428044985,502.0,0.0001911,6]
[392395525,1761428077721,403.4501933,0.00015728,2]
[392395526,1761428103821,4764.14044288,0.00015008,2]
[392395527,1761428103854,10000.01,0.00015008,2]
[392395528,1761428103886,10000.01,0.00015008,2]
[392395529,1761428103919,10000.01,0.00015008,2]
[392395530,1761428108197,-187.88725035,0.00015008,2]
[392395531,1761428110389,-172.81061943,0.00015008,2]
[392395532,1761428115179,211.0960333,0.00014889,2]
[392395533,1761428115724,-256.41977024,0.00015008,2]
[392395534,1761428118655,-194.52940329,0.00015008,2]
[392395535,1761428119826,9759.2397326,0.00014858,2]
[392395536,1761428121642,-247.03907616,0.00015008,2]
[392395537,1761428124898,-188.47447555,0.00015008,2]
[392395538,1761428128444,-167.62187896,0.00015008,2]
[392395539,1761428130142,-178.95135915,0.00015008,2]
[392395540,1761428134258,-192.87308503,0.00015008,2]
[392395541,1761428136198,29.6742341,0.00014858,2]
[392395542,1761428136223,164.85516919,0.00014858,2]
[392395543,1761428138145,-196.0,0.00015008,2]
[392395544,1761428141114,-196.0,0.00015008,2]
[392395545,1761428143984,8197.75045446,0.00014858,2]
[392395546,1761428144750,-196.0,0.00015008,2]
[392395547,1761428149099,-196.0,0.00015008,2]
[392395548,1761428152424,763.82444418,0.00014908,2]
[392395549,1761428152500,-196.0,0.00015008,2]
[392395550,1761428156345,-380.71823815,0.00015008,2]
[392395552,1761428166774,873.57993217,0.00014858,2]
[392395553,1761428166800,6355.45228414,0.00014858,2]
[392395554,1761428167384,-300.0,0.00015008,2]
[392395555,1761428169645,-168.78025044,0.00015008,2]
[392395556,1761428172202,-336.39839365,0.00015008,2]
[392395557,1761428188810,-226.54013014,0.00015008,2]
[392395558,1761428189486,3644.55771586,0.00014858,2]
[392395559,1761428189512,1169.44988077,0.00014858,2]
[392395560,1761428190849,-189.37621848,0.00015008,2]
[392395561,1761428198095,-158.96758256,0.00015008,2]
[392395562,1761428200263,-166.00000003,0.00015008,2]
[392395563,1761428212170,5682.96964101,0.00014858,2]
[392395564,1761428212931,-196.0,0.00015008,2]
[392395565,1761428215000,-163.5202249,0.00015008,2]
[392395566,1761428216579,-331.29255612,0.00015008,2]
[392395567,1761428219874,3147.59047822,0.00014858,2]
[392395568,1761428219901,112.90903436,0.00014858,2]
[392395569,1761428222448,-186.54607078,0.00015008,2]
[392395570,1761428223973,-242.50696778,0.00015008,2]
[392395571,1761428229010,-196.0,0.00015008,2]
[392395572,1761428230648,-212.71980663,0.00015008,2]
[392395573,1761428233621,-196.0,0.00015008,2]
[392395574,1761428235983,4154.3840148,0.00014858,2]
[392395575,1761428236992,-196.0,0.00015008,2]
[392395576,1761428238647,-171.17095519,0.00015008,2]
[392395577,1761428240745,-196.00735381,0.00015008,2]
[392395578,1761428242920,-196.01992208,0.00015008,2]
[392395579,1761428244275,3395.2057058,0.00014858,2]
[392395580,1761428244917,-196.0,0.00015008,2]
[392395581,1761428247074,-269.06291153,0.00015008,2]
[392395582,1761428248594,-164.68850307,0.00015008,2]
[392395583,1761428250387,-186.0125625,0.00015008,2]
[392395584,1761428252445,-239.98752112,0.00015008,2]
[392395585,1761428255590,-207.19061976,0.00015008,2]
[392395586,1761428260717,-295.1223275,0.00015008,2]
[392395587,1761428260762,164.82937034,0.00014871,2]
[392395588,1761428260961,366.51713843,0.00014858,2]
[392395589,1761428269277,1641.12133824,0.00014858,2]
[392395590,1761428269986,-166.54721963,0.00015008,2]
[392395591,1761428271556,-233.86175438,0.00015008,2]
[392395592,1761428274093,-194.58074701,0.00015008,2]
[392395593,1761428276443,-156.05634976,0.00015008,2]
[392395594,1761428278529,-202.39586679,0.00015008,2]
[392395595,1761428280671,-158.13824562,0.00015008,2]
[392395596,1761428282296,-152.65154366,0.00015008,2]
[392395597,1761428283201,1000.0,0.0001911,6]
[392395598,1761428284850,165.04339803,0.00014858,2]
[392395599,1761428284875,211.84621336,0.00014858,2]
[392395600,1761428292561,220.82295596,0.00014858,2]
[392395601,1761428293334,213.73686733,0.00015,2]
[392395602,1761428308330,376.88961139,0.00014858,2]
[392395603,1761428332136,376.88961139,0.00014858,2]
[392395604,1761428332364,859.75149822,0.00014908,2]
[392395605,1761428332847,-204.83,0.00015008,2]
[392395606,1761428336862,-172.05961139,0.00015008,2]
[392395607,1761428336884,-79.22784836,0.0001511,2]
[392395609,1761428352583,-116.77215164,0.0001511,2]
[392395610,1761428353327,-155.14049997,0.0001514,2]
[392395611,1761428362330,9766.46569672,0.00014636,2]
[392395612,1761428362352,6840.76791718,0.00014636,2]
[392395613,1761428377648,5000.0,0.0001514,2]
[392395614,1761428385409,1564.70705088,0.0001514,2]
[392395615,1761428387056,-40.85950003,0.0001514,2]
[392395616,1761428401035,5000.0,0.0001517,2]
[392395617,1761428408567,1187.45712261,0.0001514,2]
[392395618,1761428408744,728.95983692,0.0001517,2]
[392395619,1761428417511,-196.0,0.0001517,2]
[392395620,1761428417546,-500.0,0.000152,2]
[392395621,1761428424781,5000.0,0.000152,2]
[392395622,1761428447381,4155.159688,0.00015201,2]
[392395623,1761428448069,-296.69286661,0.00015364,2]
[392395624,1761428463377,-527.45398509,0.0001561,2]
[392395625,1761428478662,-366.38,0.00015671,2]
[392395626,1761428495424,-300.0,0.00015773,2]
[392395627,1761428497738,1491.478051,0.00014966,2]
[392395628,1761428506072,-300.0,0.00015774,2]
[392395629,1761428506107,-300.0,0.00015774,2]
[392395630,1761428506143,-300.0,0.00015774,2]
[392395631,1761428506174,-300.0,0.00015774,2]
[392395632,1761428506207,-1200.0,0.00015774,2]
[392395633,1761428521212,-678.26271058,0.00015786,2]
[392395634,1761428533831,-166.9955249,0.00015789,2]
[392395635,1761428535986,-231.13177892,0.00015789,2]
[392395636,1761428536504,-801.87269618,0.00015789,2]
[392395637,1761428537625,-363.74664777,0.00015797,2]
[392395638,1761428539195,-167.93959279,0.00015797,2]
[392395639,1761428540903,-198.25850035,0.00015797,2]
[392395640,1761428542416,-196.0,0.00015797,2]
[392395641,1761428545116,-447.7226307,0.00015797,2]
[392395642,1761428545142,-30.23412718,0.00015818,2]
[392395643,1761428547276,-190.06629939,0.00015818,2]
[392395644,1761428548676,-187.98950339,0.00015818,2]
[392395645,1761428550780,-186.41711022,0.00015818,2]
[392395646,1761428551583,-1440.10264793,0.00015818,2]
[392395647,1761428553213,-194.98700156,0.0001583,2]
[392395648,1761428555280,-332.07066765,0.0001583,2]
[392395649,1761428558552,-151.04746989,0.0001583,2]
[392395650,1761428559767,1282.09174362,0.0001514,2]
[392395651,1761428560662,-202.61729083,0.0001583,2]
[392395652,1761428563167,-155.36852801,0.0001583,2]
[392395653,1761428563405,152.829773,0.0001907,7]
[392395654,1761428563798,152.829773,0.00019064,7]
[392395655,1761428566945,-337.57641365,0.0001583,2]
[392395656,1761428568254,-246.82714561,0.00015862,2]
[392395657,1761428571394,-223.5139117,0.00015862,2]
[392395658,1761428573013,-151.60387663,0.00015862,2]
[392395659,1761428578904,-194.14531406,0.00015862,2]
[392395660,1761428582193,-557.57712359,0.00015862,2]
[392395661,1761428612692,153.134479,0.0001907,7]
[392395662,1761428613033,153.134479,0.00019064,7]
[392395663,1761428613315,153.134479,0.00019058,7]
[392395664,1761428625852,168.0,0.00015806,2]
[392395665,1761428630716,168.0,0.00015682,2]
[392395666,1761428642345,549.46694866,0.00015826,2]
[392395667,1761428644350,549.46694863,0.00015844,2]
[392395668,1761428646363,549.46694863,0.00015862,2]
[392395669,1761428648329,549.46694863,0.0001588,2]
[392395670,1761428714046,7466.14220545,0.00014886,2]
[392395671,1761428714076,10000.01,0.00014886,2]
[392395672,1761428714105,2949.79577725,0.00014886,2]
[392395673,1761428714143,1616.57358598,0.0001514,2]
[392395674,1761428754568,5433.64063677,0.0001579,2]
[392395675,1761428754598,10000.01,0.0001579,2]
[392395676,1761428754628,10000.01,0.0001579,2]
[392395677,1761428754654,10000.01,0.0001579,2]
[392395678,1761428754680,10000.01,0.0001579,2]
[392395679,1761428754705,10000.01,0.0001579,2]
[392395680,1761428754733,10000.01,0.0001579,2]
[392395681,1761428754758,10000.01,0.0001579,2]
[392395682,1761428754784,10000.01,0.0001579,2]
[392395683,1761428754809,10000.01,0.0001579,2]
[392395684,1761428765442,-300.0,0.00015789,2]
[392395685,1761428777550,-422.84432598,0.00015632,2]
[392395686,1761428781155,5000.0,0.00015632,2]
[392395687,1761428793173,-169.43549047,0.0001578,2]
[392395688,1761428793207,-173.28929473,0.00015789,2]
[392395689,1761428793239,-417.25332184,0.00015789,2]
[392395690,1761428793274,-500.0,0.00015789,2]
[392395691,1761428793305,-500.0,0.00015789,2]
[392395692,1761428793338,-416.13420126,0.00015789,2]
[392395693,1761428793373,-500.0,0.00015789,2]
[392395694,1761428793406,-500.0,0.00015789,2]
[392395695,1761428793437,-500.0,0.00015789,2]
[392395696,1761428793469,-500.0,0.00015789,2]
[392395697,1761428793503,-500.0,0.00015789,2]
[392395698,1761428793538,-147.7853834,0.00015789,2]
[392395699,1761428793919,-352.2146166,0.00015789,2]
[392395700,1761428793956,-199.70946736,0.00015789,2]
[392395701,1761428793992,-500.0,0.00015789,2]
[392395702,1761428794024,-500.0,0.00015789,2]
[392395703,1761428794059,-500.0,0.00015789,2]
[392395704,1761428794091,-272.16481839,0.00015789,2]
[392395705,1761428794124,-500.0,0.00015789,2]
[392395706,1761428794159,-500.0,0.00015789,2]
[392395707,1761428794193,-500.0,0.00015789,2]
[392395708,1761428794229,-500.0,0.00015789,2]
[392395709,1761428794262,-500.0,0.00015789,2]
[392395710,1761428794486,-600.0,0.00015789,2]
[392395711,1761428794519,-500.0,0.00015789,2]
[392395712,1761428794549,-646.35071224,0.00015789,2]
[392395713,1761428794580,-500.0,0.00015789,2]
[392395714,1761428794613,-500.0,0.00015789,2]
[392395715,1761428794648,-500.0,0.00015789,2]
[392395716,1761428794679,-165.47269244,0.00015789,2]
[392395717,1761428794711,-500.0,0.00015789,2]
[392395718,1761428794743,-500.0,0.00015789,2]
[392395719,1761428794779,-500.0,0.00015789,2]
[392395720,1761428795084,-500.0,0.00015789,2]
[392395721,1761428795117,-500.0,0.00015789,2]
[392395722,1761428795150,-500.0,0.00015789,2]
[392395723,1761428795184,-500.0,0.00015789,2]
[392395724,1761428795217,-500.0,0.00015789,2]
[392395725,1761428795248,-500.0,0.00015789,2]
[392395726,1761428795281,-500.0,0.00015789,2]
[392395727,1761428795313,-500.0,0.00015789,2]
[392395728,1761428795343,-500.0,0.00015789,2]
[392395729,1761428795375,-500.0,0.00015789,2]
[392395730,1761428795560,-500.0,0.00015789,2]
[392395731,1761428795590,-500.0,0.00015789,2]
[392395732,1761428795623,-500.0,0.00015789,2]
[392395733,1761428795653,-500.0,0.00015789,2]
[392395734,1761428795684,-500.0,0.00015789,2]
[392395735,1761428795718,-500.0,0.00015789,2]
[392395736,1761428795750,-500.0,0.00015789,2]
[392395737,1761428795782,-500.0,0.00015789,2]
[392395738,1761428795814,-500.0,0.00015789,2]
[392395739,1761428795850,-500.0,0.00015789,2]
[392395740,1761428795923,-570.11307669,0.00015789,2]
[392395741,1761428795960,-500.0,0.00015789,2]
[392395742,1761428795997,-500.0,0.00015789,2]
[392395743,1761428796030,-249.14500829,0.00015789,2]
[392395744,1761428796063,-500.0,0.00015789,2]
[392395745,1761428796097,-500.0,0.00015789,2]
[392395746,1761428796133,-500.0,0.00015789,2]
[392395747,1761428796167,-500.0,0.00015789,2]
[392395748,1761428796203,-500.0,0.00015789,2]
[392395749,1761428796238,-500.0,0.00015789,2]
[392395750,1761428796400,-500.0,0.00015789,2]
[392395751,1761428796434,-500.0,0.00015789,2]
[392395752,1761428799708,-500.0,0.00015789,2]
[392395753,1761428816977,-500.0,0.00015631,2]
[392395754,1761428826711,3844.77833358,0.00015631,2]
[392395755,1761428832262,-593.47987174,0.000157,2]
[392395756,1761428847551,-168.0,0.00015733,2]
[392395757,1761428862047,2073.31993775,0.0001514,2]
[392395758,1761428862776,-1200.0,0.00015788,2]
[392395759,1761428877963,-300.0,0.00015789,2]
[392395760,1761428882365,300.0,0.00015788,2]
[392395761,1761428893194,-500.0,0.00015789,2]
[392395762,1761428893225,-500.0,0.00015789,2]
[392395763,1761428893254,-500.0,0.00015789,2]
[392395764,1761428893282,-500.0,0.00015789,2]
[392395765,1761428893311,-500.0,0.00015789,2]
[392395766,1761428893340,-500.0,0.00015789,2]
[392395767,1761428893368,-500.0,0.00015789,2]
[392395768,1761428893397,-313.69668513,0.00015789,2]
[392395769,1761428893429,-500.0,0.00015789,2]
[392395770,1761428893462,-500.0,0.00015789,2]
[392395771,1761428893638,-500.0,0.00015789,2]
[392395772,1761428893669,-500.0,0.00015789,2]
[392395773,1761428893702,-500.0,0.00015789,2]
[392395774,1761428893734,-500.0,0.00015789,2]
[392395775,1761428893765,-500.0,0.00015789,2]
[392395776,1761428893798,-500.0,0.00015789,2]
[392395777,1761428893830,-348.93152321,0.00015789,2]
[392395778,1761428893861,-500.0,0.00015789,2]
[392395779,1761428893893,-500.0,0.00015789,2]
[392395780,1761428893928,-500.0,0.00015789,2]
[392395781,1761428894118,-500.0,0.00015789,2]
[392395782,1761428894154,-500.0,0.00015789,2]
[392395783,1761428894192,-500.0,0.00015789,2]
[392395784,1761428894227,-500.0,0.00015789,2]
[392395785,1761428894264,-500.0,0.00015789,2]
[392395786,1761428894543,-500.0,0.00015789,2]
[392395787,1761428906850,4000.01,0.00015789,2]